bitfinex/quotes_SOLUSD_20220101
["timestamp","ask_amount","ask_price","bid_price","bid_amount"]
[1641004447932,9.1834,172.8,172.65,1.333]
[1641004448132,9.4434,172.8,172.65,1.333]
[1641004448334,9.4434,172.8,172.65,1.833]
[1641004448531,9.1834,172.8,172.65,1.833]
[1641004448732,1.239,172.79,172.65,1.833]
[1641004448935,8.6861,172.75,172.66,25.05910861]
[1641004449135,8.6861,172.75,172.67,8.686]
[1641004449432,8.6861,172.75,172.67,9.186]
[1641004449633,8.6861,172.75,172.67,9.446]
[1641004450236,8.6853,172.76,172.67,9.446]
[1641004451441,1.239,172.79,172.67,9.446]
[1641004451639,1.62467489,172.79,172.67,9.446]
[1641004451837,1.62467489,172.79,172.73,8.6824]
[1641004452044,1.62467489,172.79,172.74,31.31501215]
[1641004452445,1.62467489,172.82,172.74,32.07501215]
[1641004453045,77.00677489,172.83,172.74,32.07501215]
[1641004453246,8.6828,172.81,172.75,8.6824]
[1641004453545,8.6828,172.81,172.75,8.9424]
[1641004454145,86.18887489,172.83,172.75,8.9424]
[1641004454362,85.68887489,172.83,172.75,9.4424]
[1641004454563,77.00677489,172.83,172.75,9.4424]
[1641004454764,75.68897489,172.83,172.75,9.4424]
[1641004454965,75.68897489,172.83,172.75,14.5344]
[1641004455164,74.0643,172.83,172.75,14.5344]
[1641004462676,10.30497489,172.86,172.75,14.5344]
[1641004462877,1.62467489,172.86,172.75,14.5344]
[1641004463277,1.62467489,172.86,172.75,9.4424]
[1641004463476,3.95806989,172.87,172.75,10.713]
[1641004464076,2.333395,172.87,172.75,10.713]
[1641004466177,3.95806989,172.87,172.75,10.713]
[1641004468478,2.333395,172.87,172.75,10.713]
[1641004470080,2.333395,172.87,172.75,12.13969368]
[1641004476789,2.333395,172.87,172.75,10.713]
[1641004476990,2.333395,172.87,172.75,10.453]
[1641004478292,2.333395,172.87,172.75,10.713]
[1641004481123,3.671595,172.87,172.75,10.713]
[1641004501938,2.333395,172.87,172.75,10.713]
[1641004502138,2.333395,172.87,172.75,19.42729015]
[1641004508087,1.3216,172.89,172.75,19.42729015]
[1641004508289,1.3216,172.89,172.75,93.82909015]
[1641004514992,3.654995,172.89,172.75,93.82909015]
[1641004516294,3.654995,172.89,172.82,8.6778]
[1641004516494,3.654995,172.89,172.82,9.4378]
[1641004524698,5.27966989,172.89,172.82,9.4378]
[1641004525700,3.654995,172.89,172.82,9.4378]
[1641004546389,5.27966989,172.89,172.82,9.4378]
[1641004553499,3.654995,172.89,172.82,9.4378]
[1641004577541,12.333695,172.89,172.82,9.4378]
[1641004581955,13.95836989,172.89,172.82,9.4378]
[1641004590072,5.27966989,172.89,172.82,9.4378]
[1641004591071,3.654995,172.89,172.82,9.4378]
[1641004594373,4.154995,172.89,172.77,12.0771614]
[1641004594575,4.154995,172.89,172.69,15.09884236]
[1641004594576,12.833695,172.89,172.79,8.6802]
[1641004594775,13.093695,172.89,172.78,1.3378]
[1641004595476,8.6814,172.84,172.78,1.3378]
[1641004596778,8.6814,172.84,172.78,1.5978]
[1641004597177,1.2386,172.85,172.78,10.2789]
[1641004597377,1.2386,172.85,172.78,10.7789]
[1641004597978,33.39586989,172.89,172.78,10.2789]
[1641004598180,33.65586989,172.89,172.78,10.2789]
[1641004598579,8.6808,172.85,172.78,10.2789]
[1641004599277,1.3419,172.88,172.81,8.6798]
[1641004599479,1.3419,172.88,172.81,8.9398]
[1641004599678,1.3419,172.88,172.81,9.4398]
[1641004599878,1.3419,172.88,172.81,8.9398]
[1641004600479,1.3419,172.88,172.81,0.26]
[1641004600685,8.6802,172.87,172.81,0.26]
[1641004600980,8.6802,172.87,172.79,32.41595918]
[1641004601579,8.6802,172.87,172.81,8.6797]
[1641004602078,8.6802,172.87,172.81,8.9397]
[1641004602679,8.6802,172.87,172.81,9.4397]
[1641004602881,8.6802,172.87,172.81,8.9397]
[1641004603480,8.6802,172.87,172.81,9.4397]
[1641004606386,1.3419,172.88,172.81,9.4397]
[1641004606586,1.3419,172.88,172.81,8.9397]
[1641004607186,1.8419,172.88,172.81,8.9397]
[1641004607486,1.8419,172.88,172.81,9.4397]
[1641004607687,10.0213,172.88,172.81,8.9397]
[1641004607888,12.14597489,172.88,172.81,8.9397]
[1641004608087,11.64597489,172.88,172.81,8.9397]
[1641004608687,11.64597489,172.88,172.81,9.4397]
[1641004608888,11.64597489,172.88,172.81,8.9397]
[1641004609293,1.5206,172.8,172.72,76.1953]
[1641004609493,1.5206,172.8,172.72,74.8662]
[1641004609690,1.5206,172.8,172.7,6.04083281]
[1641004609989,2.0206,172.8,172.69,77.6522]
[1641004610289,2.0206,172.8,172.69,86.3365]
[1641004610691,10.7045,172.8,172.69,77.6522]
[1641004611091,10.9645,172.8,172.69,77.6522]
[1641004611831,12.58917489,172.8,172.69,77.6522]
[1641004612191,12.58917489,172.8,172.69,77.9122]
[1641004612392,12.58917489,172.8,172.68,1.2584]
[1641004612592,12.58917489,172.8,172.65,77.8747]
[1641004612593,1.62467489,172.79,172.65,72.7456]
[1641004612794,8.6883,172.72,172.64,94.5]
[1641004612992,8.6883,172.72,172.64,95.0]
[1641004613502,8.6883,172.72,172.64,94.5]
[1641004613696,8.6883,172.72,172.64,95.0]
[1641004613895,9.1883,172.72,172.64,95.0]
[1641004614095,9.4483,172.72,172.64,94.5]
[1641004614498,8.6883,172.72,172.64,94.5]
[1641004614697,8.6883,172.72,172.64,95.0]
[1641004615096,8.6883,172.72,172.64,95.26]
[1641004615296,8.6883,172.72,172.64,94.76]
[1641004615498,8.6883,172.72,172.64,95.26]
[1641004615701,11.021695,172.72,172.64,95.26]
[1641004615897,2.333395,172.72,172.64,95.26]
[1641004617401,2.333395,172.72,172.64,103.946]
[1641004617600,2.333395,172.72,172.65,1.42669368]
[1641004617801,2.333395,172.72,172.65,8.98869368]
[1641004618000,2.333395,172.72,172.65,9.74869368]
[1641004618203,2.333395,172.72,172.66,1.42669368]
[1641004618401,2.333395,172.72,172.66,1.92669368]
[1641004618600,2.333395,172.72,172.66,2.18669368]
[1641004618803,2.333395,172.72,172.67,1.42669368]
[1641004619000,2.333395,172.72,172.67,2.18669368]
[1641004619201,2.333395,172.72,172.68,8.6835]
[1641004619401,2.333395,172.72,172.68,10.61019368]
[1641004619605,2.333395,172.72,172.69,1.42669368]
[1641004620002,2.333395,172.72,172.69,2.18669368]
[1641004620403,2.333395,172.72,172.69,0.5]
[1641004620602,2.333395,172.72,172.68,30.10063617]
[1641004620803,2.333395,172.72,172.68,30.60063617]
[1641004621609,2.333395,172.72,172.68,0.5]
[1641004621806,2.333395,172.72,172.68,0.76]
[1641004622005,2.333395,172.72,172.65,10.779]
[1641004625708,8.6849,172.79,172.65,10.779]
[1641004625909,8.9449,172.79,172.65,10.779]
[1641004626310,9.4449,172.79,172.65,10.779]
[1641004626612,1.62467489,172.76,172.65,10.779]
[1641004626829,1.62467489,172.76,172.65,0.76]
[1641004627031,10.81107489,172.76,172.65,0.5]
[1641004627233,10.81107489,172.76,172.6,94.5]
[1641004627431,1.62467489,172.75,172.63,0.5]
[1641004627830,2.12467489,172.75,172.61,31.9861603]
[1641004628030,3.63697489,172.75,172.61,31.9861603]
[1641004628231,3.63697489,172.75,172.61,40.6735603]
[1641004628232,1.62467489,172.73,172.61,40.6735603]
[1641004628434,1.62467489,172.73,172.62,1.3301]
[1641004628836,1.2523,172.75,172.62,1.3301]
[1641004628837,1.62467489,172.74,172.62,2.0901]
[1641004629436,1.2523,172.75,172.62,2.0901]
[1641004629634,1.2523,172.75,172.63,8.6866]
[1641004629635,1.7523,172.75,172.63,8.6866]
[1641004629834,2.0123,172.75,172.63,8.6866]
[1641004630035,1.7523,172.75,172.63,9.1866]
[1641004630234,2.87697489,172.75,172.63,9.1866]
[1641004630637,2.87697489,172.75,172.63,17.61529368]
[1641004630638,1.62467489,172.75,172.63,17.61529368]
[1641004630834,15.59031111,172.79,172.63,17.61529368]
[1641004630835,1.62467489,172.76,172.63,16.1886]
[1641004631138,1.62467489,172.76,172.67,8.6848]
[1641004631337,1.62467489,172.76,172.63,0.5]
[1641004631338,2.12467489,172.76,172.63,0.5]
[1641004631535,0.76,172.76,172.64,0.5]
[1641004631838,8.9463,172.76,172.63,0.5]
[1641004632036,1.3036,172.75,172.63,0.5]
[1641004632237,1.62467489,172.72,172.61,8.6875]
[1641004632437,1.62467489,172.72,172.61,9.1875]
[1641004632636,1.62467489,172.72,172.61,9.4475]
[1641004633237,1.62467489,172.72,172.62,1.2627]
[1641004633437,1.62467489,172.72,172.62,1.7627]
[1641004633637,1.62467489,172.72,172.62,2.0227]
[1641004633838,1.62467489,172.72,172.62,10.71]
[1641004636341,80.88837489,172.75,172.62,10.71]
[1641004637142,81.14837489,172.75,172.62,10.71]
[1641004637944,1.62467489,172.74,172.62,10.71]
[1641004638545,1.62467489,172.73,172.62,10.71]
[1641004639048,1.62467489,172.74,172.62,10.71]
[1641004639347,2.12467489,172.74,172.62,10.71]
[1641004639747,1.62467489,172.73,172.62,10.71]
[1641004640349,1.62467489,172.74,172.62,10.45]
[1641004641148,1.62467489,172.73,172.62,10.45]
[1641004641547,1.62467489,172.73,172.62,10.71]
[1641004641748,10.31167489,172.74,172.62,10.71]
[1641004641948,10.81167489,172.74,172.62,10.71]
[1641004642150,11.07167489,172.74,172.62,10.71]
[1641004642349,10.81167489,172.74,172.62,10.71]
[1641004642548,11.07167489,172.74,172.62,10.71]
[1641004642749,2.38467489,172.74,172.62,10.71]
[1641004643551,2.12467489,172.74,172.62,10.71]
[1641004644150,2.38467489,172.74,172.62,10.71]
[1641004644552,2.12467489,172.74,172.62,10.71]
[1641004644955,2.38467489,172.74,172.62,10.71]
[1641004645576,1.88467489,172.74,172.62,10.71]
[1641004646554,1.62467489,172.74,172.62,10.71]
[1641004647356,0.5,172.74,172.62,10.71]
[1641004647955,1.62467489,172.74,172.62,10.71]
[1641004648756,1.62467489,172.74,172.62,16.65]
[1641004649157,77.9601,172.75,172.62,16.65]
[1641004653957,1.62467489,172.76,172.62,16.65]
[1641004654361,1.62467489,172.77,172.62,16.65]
[1641004655562,10.30977489,172.77,172.62,16.65]
[1641004655859,10.80977489,172.77,172.62,16.65]
[1641004656059,1.62467489,172.75,172.62,16.65]
[1641004656860,1.62467489,172.74,172.62,16.65]
[1641004657261,2.93127489,172.76,172.62,16.65]
[1641004658062,1.62467489,172.75,172.62,16.65]
[1641004660687,10.31077489,172.75,172.62,9.1873]
[1641004660885,10.31077489,172.75,172.6,29.26117766]
[1641004660886,11.07077489,172.75,172.6,37.94967766]
[1641004661089,1.62467489,172.71,172.6,38.44967766]
[1641004661495,2.38467489,172.71,172.6,38.44967766]
[1641004662092,2.38467489,172.71,172.6,38.70967766]
[1641004662695,8.6891,172.69,172.6,38.70967766]
[1641004663292,8.6891,172.69,172.6,9.4485]
[1641004663492,8.6891,172.69,172.6,8.9485]
[1641004663893,8.6891,172.69,172.6,9.4485]
[1641004664501,9.4491,172.69,172.6,0.26]
[1641004664900,9.4491,172.69,172.58,9.1896]
[1641004665597,11.07377489,172.69,172.58,9.1896]
[1641004665998,11.07377489,172.69,172.58,9.4496]
[1641004666798,11.07377489,172.69,172.58,8.9496]
[1641004667201,11.07377489,172.69,172.58,9.4496]
[1641004667601,11.07377489,172.69,172.58,8.9496]
[1641004667802,11.07377489,172.69,172.58,9.4496]
[1641004668001,11.07377489,172.69,172.58,9.1896]
[1641004668801,1.62467489,172.68,172.58,8.6896]
[1641004669002,8.6902,172.67,172.58,8.6896]
[1641004669203,8.6902,172.67,172.58,9.1896]
[1641004669405,9.1902,172.67,172.58,9.4496]
[1641004669905,9.1902,172.67,172.58,8.9496]
[1641004670306,9.1902,172.67,172.58,9.4496]
[1641004670703,8.6902,172.67,172.58,9.4496]
[1641004671506,9.1902,172.67,172.58,8.6896]
[1641004671904,9.1902,172.67,172.58,9.1896]
[1641004672105,9.4502,172.67,172.58,9.1896]
[1641004672305,9.4502,172.67,172.58,8.6896]
[1641004672705,9.4502,172.67,172.58,9.1896]
[1641004672907,8.9502,172.67,172.58,9.1896]
[1641004673104,8.9502,172.67,172.58,9.4496]
[1641004673305,8.6902,172.67,172.58,9.4496]
[1641004673504,8.6893,172.68,172.58,9.4496]
[1641004674105,1.3094,172.71,172.58,9.4496]
[1641004674304,1.8094,172.71,172.58,9.4496]
[1641004675106,2.0694,172.71,172.58,9.4496]
[1641004675606,8.6894,172.68,172.58,9.4496]
[1641004676809,8.6888,172.69,172.58,9.4496]
[1641004677407,1.3094,172.71,172.58,9.4496]
[1641004677609,1.3094,172.71,172.62,8.6879]
[1641004678011,1.3094,172.71,172.62,9.4479]
[1641004678610,9.9977,172.71,172.62,8.9479]
[1641004679111,10.4977,172.71,172.62,8.9479]
[1641004679413,10.4977,172.71,172.62,9.4479]
[1641004679611,10.4977,172.71,172.62,8.9479]
[1641004680214,10.4977,172.71,172.63,24.08249153]
[1641004680412,10.4977,172.71,172.63,0.5]
[1641004680623,9.9977,172.71,172.58,1.2686]
[1641004680912,9.9977,172.71,172.58,1.7686]
[1641004681114,12.38237489,172.71,172.58,1.7686]
[1641004681914,8.6896,172.68,172.58,10.4583]
[1641004682415,9.1896,172.68,172.58,10.4583]
[1641004682817,10.81427489,172.68,172.58,10.4583]
[1641004683418,11.07427489,172.68,172.58,10.7183]
[1641004683818,8.6896,172.68,172.58,10.7183]
[1641004684218,8.6896,172.68,172.58,10.4583]
[1641004684422,9.1896,172.68,172.58,10.4583]
[1641004684618,8.6896,172.68,172.58,10.4583]
[1641004685218,9.1896,172.68,172.58,10.4583]
[1641004685419,8.6896,172.68,172.58,10.4583]
[1641004685620,8.6896,172.68,172.58,10.7183]
[1641004690849,9.1896,172.68,172.58,10.7183]
[1641004691052,8.6896,172.68,172.58,10.7183]
[1641004691452,9.1896,172.68,172.58,10.7183]
[1641004691650,9.1896,172.68,172.58,10.4583]
[1641004692251,9.4496,172.68,172.58,10.4583]
[1641004693051,9.4496,172.68,172.58,10.7183]
[1641004693255,9.4496,172.68,172.58,10.2183]
[1641004694356,8.9496,172.68,172.58,10.2183]
[1641004695257,9.4496,172.68,172.58,10.2183]
[1641004699763,8.6896,172.68,172.58,10.2183]
[1641004699963,8.6896,172.68,172.58,16.7253]
[1641004700363,9.1896,172.68,172.58,16.7253]
[1641004701964,9.1896,172.68,172.58,16.2253]
[1641004702164,9.1896,172.68,172.58,16.7253]
[1641004703365,8.6896,172.68,172.58,16.7253]
[1641004704869,9.1896,172.68,172.58,16.4653]
[1641004705069,9.4496,172.68,172.58,16.4653]
[1641004706271,9.4496,172.68,172.58,16.2253]
[1641004707972,9.4496,172.68,172.58,16.7253]
[1641004708872,8.9496,172.68,172.58,16.7253]
[1641004709074,8.6896,172.68,172.58,16.7253]
[1641004709872,9.1896,172.68,172.58,16.7253]
[1641004711078,9.1896,172.68,172.58,10.7183]
[1641004716305,9.4496,172.68,172.58,10.7183]
[1641004716510,9.4496,172.68,172.58,10.2183]
[1641004721910,9.1896,172.68,172.58,10.2183]
[1641004722212,8.6896,172.68,172.58,10.2183]
[1641004722410,8.6896,172.68,172.58,10.7183]
[1641004722614,11.58797489,172.69,172.58,10.7183]
[1641004722914,9.9633,172.69,172.58,10.7183]
[1641004729422,10.4633,172.69,172.58,10.7183]
[1641004731034,10.7233,172.69,172.58,10.7183]
[1641004733654,10.4633,172.69,172.58,10.7183]
[1641004734055,9.9633,172.69,172.58,10.7183]
[1641004736962,11.58797489,172.69,172.58,10.7183]
[1641004737765,11.58797489,172.69,172.58,10.4583]
[1641004737966,12.34797489,172.69,172.58,10.4583]
[1641004738165,12.34797489,172.69,172.58,9.9583]
[1641004738368,12.08797489,172.69,172.58,9.9583]
[1641004738568,11.58797489,172.69,172.58,10.4583]
[1641004738970,11.84797489,172.69,172.58,10.7183]
[1641004739169,12.34797489,172.69,172.58,10.7183]
[1641004739369,12.08797489,172.69,172.58,10.7183]
[1641004739573,12.08797489,172.69,172.58,10.4583]
[1641004739975,1.62467489,172.68,172.58,10.4583]
[1641004740176,8.6898,172.67,172.58,10.4583]
[1641004740575,1.62467489,172.68,172.58,10.4583]
[1641004740976,1.62467489,172.68,172.58,10.7183]
[1641004741578,10.31397489,172.68,172.58,10.7183]
[1641004742381,10.31397489,172.68,172.58,9.4497]
[1641004742583,11.07397489,172.68,172.58,0.5]
[1641004742784,11.07397489,172.68,172.56,30.35814975]
[1641004742983,1.62467489,172.66,172.56,30.85814975]
[1641004743206,8.6911,172.65,172.56,0.5]
[1641004743409,10.5017,172.65,172.53,1.8237]
[1641004743609,12.12637489,172.65,172.53,1.3237]
[1641004743811,12.12637489,172.65,172.55,8.691]
[1641004744308,12.12637489,172.65,172.55,9.191]
[1641004744510,12.12637489,172.65,172.56,1.3309]
[1641004745007,12.12637489,172.65,172.56,2.0909]
[1641004747011,11.62637489,172.65,172.56,2.0909]
[1641004747611,10.0017,172.65,172.56,2.0909]
[1641004748613,10.0017,172.65,172.56,0.76]
[1641004748816,10.5017,172.65,172.55,9.451]
[1641004749514,11.62637489,172.65,172.55,9.451]
[1641004750116,10.0017,172.65,172.55,9.451]
[1641004751519,10.0017,172.65,172.56,10.0007]
[1641004751715,1.3106,172.65,172.56,10.0007]
[1641004751916,1.3106,172.65,172.56,10.7607]
[1641004752217,2.93527489,172.65,172.56,10.7607]
[1641004752817,1.3106,172.65,172.56,10.7607]
[1641004753617,10.0016,172.65,172.56,2.0702]
[1641004755924,1.62467489,172.68,172.56,16.3547]
[1641004756221,1.62467489,172.68,172.57,1.42669368]
[1641004756421,1.62467489,172.68,172.57,1.92669368]
[1641004756622,1.62467489,172.68,172.57,2.18669368]
[1641004756829,1.62467489,172.68,172.62,8.6873]
[1641004757023,1.62467489,172.68,172.63,24.6085657]
[1641004757223,1.2882,172.71,172.63,24.6085657]
[1641004757523,1.62467489,172.72,172.63,25.3685657]
[1641004757725,1.62467489,172.72,172.64,1.3028]
[1641004757923,1.62467489,172.72,172.64,1.8028]
[1641004758126,1.62467489,172.72,172.65,28.9483]
[1641004758324,1.62467489,172.73,172.65,37.34899368]
[1641004758526,1.62467489,172.73,172.65,38.10899368]
[1641004759325,1.62467489,172.77,172.69,8.6842]
[1641004759526,1.62467489,172.77,172.7,24.88562455]
[1641004759925,1.62467489,172.75,172.7,25.64562455]
[1641004760625,1.62467489,172.75,172.7,34.32952455]
[1641004763533,1.62467489,172.75,172.7,34.06952455]
[1641004763731,1.62467489,172.75,172.7,24.88562455]
[1641004764935,1.62467489,172.75,172.7,25.14562455]
[1641004765839,1.62467489,172.75,172.7,0.26]
[1641004766032,1.62467489,172.75,172.66,1.5787]
[1641004766233,1.62467489,172.75,172.66,2.0787]
[1641004766833,1.62467489,172.74,172.66,24.49401803]
[1641004767640,1.62467489,172.74,172.68,8.6855]
[1641004768042,1.62467489,172.74,172.68,8.9455]
[1641004768243,1.62467489,172.73,172.68,8.9455]
[1641004769773,1.62467489,172.74,172.68,8.9455]
[1641004769972,1.62467489,172.74,172.68,0.26]
[1641004770174,2.12467489,172.74,172.68,0.26]
[1641004770374,2.12467489,172.74,172.66,8.946]
[1641004770978,2.12467489,172.74,172.66,9.446]
[1641004771174,1.62467489,172.72,172.66,9.446]
[1641004771572,1.62467489,172.73,172.66,9.446]
[1641004772773,1.62467489,172.74,172.66,9.446]
[1641004774376,1.62467489,172.75,172.66,9.446]
[1641004778279,1.62467489,172.75,172.66,10.87269368]
[1641004778878,1.62467489,172.76,172.66,10.87269368]
[1641004780985,1.62467489,172.75,172.66,10.87269368]
[1641004781583,8.6849,172.77,172.66,10.87269368]
[1641004784685,9.9115,172.78,172.66,10.87269368]
[1641004784984,2.333395,172.79,172.66,10.87269368]
[1641004785786,1.62467489,172.78,172.66,10.87269368]
[1641004786390,1.62467489,172.78,172.67,1.2664]
[1641004786589,1.62467489,172.78,172.71,8.6839]
[1641004786991,1.62467489,172.78,172.67,1.2664]
[1641004787187,2.12467489,172.78,172.67,1.7664]
[1641004787794,1.62467489,172.77,172.7,8.6844]
[1641004788091,1.62467489,172.77,172.7,9.1844]
[1641004788289,10.30917489,172.78,172.7,9.1844]
[1641004788590,10.30917489,172.78,172.7,9.4444]
[1641004789489,10.80917489,172.78,172.7,8.9444]
[1641004789891,1.62467489,172.76,172.7,8.9444]
[1641004791091,10.30987489,172.77,172.7,0.26]
[1641004791293,8.6854,172.76,172.69,8.6852]
[1641004791492,8.6854,172.76,172.67,1.2664]
[1641004791695,8.6854,172.76,172.67,1.7664]
[1641004792494,10.31007489,172.76,172.67,2.0264]
[1641004792694,10.31007489,172.76,172.68,8.6857]
[1641004793093,1.62467489,172.75,172.68,8.9457]
[1641004794197,10.31047489,172.75,172.68,8.9457]
[1641004794395,1.62467489,172.75,172.68,8.9457]
[1641004794795,1.62467489,172.75,172.68,9.4457]
[1641004794995,1.62467489,172.76,172.68,9.4457]
[1641004796395,1.62467489,172.77,172.68,9.4457]
[1641004797600,10.30957489,172.77,172.68,9.4457]
[1641004798799,10.30957489,172.77,172.68,8.9457]
[1641004798998,10.30957489,172.77,172.68,9.4457]
[1641004802702,1.62467489,172.76,172.68,9.4457]
[1641004803508,1.62467489,172.76,172.69,1.42669368]
[1641004804004,1.62467489,172.76,172.69,2.18669368]
[1641004804205,90.68316989,172.79,172.69,2.18669368]
[1641004805309,90.68316989,172.79,172.72,8.6835]
[1641004805508,3.95806989,172.79,172.73,29.65431949]
[1641004805911,3.95806989,172.79,172.73,31.84101317]
[1641004806111,2.333395,172.79,172.74,1.42669368]
[1641004806311,1.5206,172.8,172.74,1.42669368]
[1641004806510,1.5206,172.8,172.77,8.681]
[1641004806924,1.5206,172.8,172.77,9.441]
[1641004809314,3.853995,172.8,172.77,9.441]
[1641004815444,3.853995,172.8,172.77,0.26]
[1641004815843,3.853995,172.8,172.76,9.4423]
[1641004816043,3.853995,172.8,172.76,8.9423]
[1641004816643,3.853995,172.8,172.76,9.4423]
[1641004819559,1.5206,172.8,172.76,9.4423]
[1641004820757,3.853996,172.8,172.76,9.4423]
[1641004828568,3.853996,172.8,172.78,8.6793]
[1641004828969,3.853996,172.8,172.78,10.86599368]
[1641004830688,3.853996,172.8,172.78,9.4393]
[1641004831089,1.5206,172.8,172.78,9.4393]
[1641004832392,3.853995,172.8,172.78,9.4393]
[1641004839898,3.853995,172.8,172.78,10.86599368]
[1641004840200,3.853995,172.8,172.78,10.36599368]
[1641004841004,3.853995,172.8,172.78,16.68699368]
[1641004841501,3.853995,172.8,172.78,17.18699368]
[1641004842402,1.5206,172.8,172.78,17.18699368]
[1641004844421,3.853995,172.8,172.78,17.18699368]
[1641004845915,3.853995,172.8,172.78,10.86599368]
[1641004854444,1.5206,172.8,172.78,10.86599368]
[1641004855046,1.5206,172.8,172.78,9.4393]
[1641004855848,3.853995,172.8,172.78,9.4393]
[1641004858257,3.853995,172.8,172.78,9.1793]
[1641004859756,3.853995,172.8,172.78,9.4393]
[1641004866164,1.5206,172.8,172.78,9.4393]
[1641004867186,0.5206,172.8,172.78,9.4393]
[1641004867986,2.853995,172.8,172.78,9.4393]
[1641004877804,2.853995,172.8,172.78,10.86599368]
[1641004878001,0.5206,172.8,172.78,10.86599368]
[1641004878804,0.5206,172.8,172.78,12.15539368]
[1641004879206,2.853995,172.8,172.78,12.15539368]
[1641004879406,2.853995,172.8,172.78,10.86599368]
[1641004879907,9.5e-05,172.8,172.78,10.86599368]
[1641004880306,1.62467489,172.89,172.78,10.86599368]
[1641004880903,1.62467489,172.9,172.84,8.6756]
[1641004881106,1.62467489,172.9,172.84,8.9356]
[1641004881308,1.62467489,172.9,172.84,9.4356]
[1641004881806,1.62467489,172.9,172.87,8.675]
[1641004882006,1.62467489,172.9,172.88,28.45340659]
[1641004882206,2.92727489,172.92,172.88,28.45340659]
[1641004882406,1.62467489,172.92,172.88,29.21340659]
[1641004883106,1.62467489,172.93,172.88,29.21340659]
[1641004883307,2.333395,172.92,172.88,29.21340659]
[1641004883708,2.333395,172.92,172.9,8.675]
[1641004883909,2.333395,172.92,172.9,9.175]
[1641004884108,2.333395,172.92,172.9,9.435]
[1641004884609,8.39575357,172.92,172.9,9.435]
[1641004886411,6.06235857,172.91,172.9,9.435]
[1641004887012,2.333395,172.92,172.9,9.435]
[1641004888413,2.333395,172.92,172.9,8.935]
[1641004888614,2.333395,172.92,172.9,9.435]
[1641004893543,74.22277489,172.95,172.9,9.435]
[1641004893746,1.62467489,172.95,172.9,9.435]
[1641004894748,1.62467489,172.95,172.9,8.935]
[1641004894946,2.12467489,172.95,172.89,8.6759]
[1641004895146,4.45806989,172.95,172.89,8.6759]
[1641004895349,4.45806989,172.95,172.89,0.26]
[1641004895547,4.45806989,172.95,172.85,28.9187]
[1641004895747,13.39416989,172.95,172.85,27.45259821]
[1641004896347,1.62467489,172.94,172.85,27.45259821]
[1641004896548,1.62467489,172.94,172.87,8.6765]
[1641004896953,1.62467489,172.94,172.87,8.9365]
[1641004897151,1.62467489,172.94,172.87,9.4365]
[1641004897650,10.30117489,172.94,172.87,9.4365]
[1641004898250,10.30117489,172.94,172.87,8.9365]
[1641004898751,10.30117489,172.94,172.87,9.4365]
[1641004901954,1.62467489,172.94,172.87,9.4365]
[1641004906863,3.95806989,172.94,172.87,9.4365]
[1641004911372,1.62467489,172.93,172.87,9.4365]
[1641004912894,3.95806989,172.94,172.87,9.4365]
[1641004916504,2.333395,172.94,172.87,9.4365]
[1641004916905,1.62467489,172.95,172.87,9.4365]
[1641004918302,3.95806989,172.95,172.87,9.4365]
[1641004920213,12.63396989,172.95,172.87,8.6765]
[1641004920613,13.39396989,172.95,172.86,8.6775]
[1641004920909,14.71695934,172.95,172.76,162.43077323]
[1641004921108,1.62467489,172.92,172.76,189.4292379]
[1641004921309,1.62467489,172.92,172.79,1.2457]
[1641004921509,8.6798,172.87,172.79,1.2457]
[1641004921707,8.6798,172.87,172.82,8.6794]
[1641004922109,8.6798,172.87,172.82,9.1794]
[1641004922509,8.6798,172.87,172.82,9.4394]
[1641004922909,8.6798,172.87,172.82,8.9394]
[1641004923310,8.6798,172.87,172.82,9.4394]
[1641004923710,8.6792,172.88,172.82,9.1794]
[1641004924709,8.6792,172.88,172.82,8.6794]
[1641004924910,8.6792,172.88,172.82,9.1794]